fUSD/lending_fUSD_20240528
["ID","MTS","AMOUNT","RATE_DAILY","PERIOD"]
[328113585,1716875443087,-1130.44,0.00033438,6]
[328113586,1716875443097,-1130.44,0.00033438,6]
[328113587,1716875443107,-1130.44,0.00033438,6]
[328113588,1716875443117,-1130.44,0.00033438,6]
[328113589,1716875443126,-1130.44,0.00033438,6]
[328113590,1716875443136,-1130.44,0.00033438,6]
[328113591,1716875443146,-1130.44,0.00033438,6]
[328113592,1716875443155,-1130.49329502,0.00033438,6]
[328113593,1716875443166,-151.0,0.00033439,7]
[328113594,1716875443174,-151.0,0.00033439,7]
[328113595,1716875443185,-151.0,0.00033439,7]
[328113596,1716875443194,-176.638124,0.00033439,7]
[328113597,1716875443203,-155.0,0.00033439,7]
[328113598,1716875443212,-151.0,0.00033439,7]
[328113599,1716875443222,-151.0,0.00033439,7]
[328113600,1716875443232,-151.0,0.00033439,7]
[328113601,1716875443242,-151.0,0.00033439,7]
[328113602,1716875443252,-151.0,0.00033439,7]
[328113603,1716875443261,-223.264986,0.00033439,7]
[328113604,1716875443271,-1263.62181911,0.00033439,4]
[328113605,1716875443281,-6557.21653036,0.00033439,2]
[328113606,1716875443290,-978.81333989,0.00033441,5]
[328113607,1716875443300,-249.630155,0.00033441,7]
[328113608,1716875443310,-249.630155,0.00033441,7]
[328113609,1716875443320,-249.630155,0.00033441,7]
[328113610,1716875443330,-249.630155,0.00033441,7]
[328113611,1716875443340,-249.630155,0.00033441,7]
[328113612,1716875443350,-249.630155,0.00033441,7]
[328113613,1716875443359,-85887.68014239,0.00033441,60]
[328113614,1716875443385,-563.6353028,0.00033441,60]
[328113615,1716875443461,-249.630155,0.00033441,7]
[328113616,1716875443471,-162.9530008,0.00033441,7]
[328113617,1716875443483,-86.6771542,0.00033441,7]
[328113618,1716875443492,-2391.51780239,0.00033441,60]
[328113619,1716875443504,-669.3090582,0.00033441,60]
[328113620,1716875443519,-4516.11101544,0.00033441,60]
[328113623,1716875443606,-108137.6374698,0.00033441,60]
[328113624,1716875443618,-2172.75228679,0.00033441,60]
[328113625,1716875443630,-12093.65947636,0.00033441,60]
[328113626,1716875443653,-249.630155,0.00033441,7]
[328113627,1716875443662,-25726.92956804,0.00033441,60]
[328113628,1716875444513,-17357.62500003,0.00033441,60]
[328113629,1716875444525,-1208.31814024,0.00033441,60]
[328113630,1716875444604,-249.630155,0.00033441,7]
[328113631,1716875444614,-1277.397845,0.00033441,60]
[328113632,1716875444642,-151.0,0.00033441,7]
[328113633,1716875444652,-249.630155,0.00033441,7]
[328113634,1716875444662,-113.379845,0.00033441,60]
[328113635,1716875444674,-9035.23075272,0.00033441,60]
[328113636,1716875444685,-263.95605343,0.00033441,60]
[328113637,1716875444696,-300.0,0.00033441,60]
[328113640,1716875444708,-744.5,0.00033441,60]
[328113642,1716875444720,-3224.73762716,0.00033441,60]
[328113643,1716875445199,-298.012568,0.00033441,60]
[328113645,1716875445215,-498.0,0.00033441,60]
[328113646,1716875445229,-931.14427352,0.00033441,60]
[328113647,1716875445240,-302.0,0.00033441,60]
[328113648,1716875445252,-12802.0,0.00033441,60]
[328113649,1716875445263,-2992.66047825,0.00033441,60]
[328113650,1716875449781,-214.88,0.00033431,10]
[328113651,1716875449790,-195.27274604,0.00033439,4]
[328113652,1716875449802,-68.30295025,0.00033439,4]
[328113653,1716875449811,-3522.06371928,0.00033439,4]
[328113654,1716875449821,-4724.81833964,0.00033439,4]
[328113655,1716875449831,-1205.70642199,0.00033439,4]
[328113656,1716875449840,-828.39921848,0.0003344,2]
[328113657,1716875449850,-3132.53818714,0.0003344,4]
[328113658,1716875449860,-6381.91822943,0.0003344,4]
[328113659,1716875449869,-491.39597292,0.0003344,4]
[328113660,1716875449878,-429.2531761,0.0003344,4]
[328113661,1716875449887,-534.95733472,0.0003344,4]
[328113662,1716875449897,-1651.91112842,0.0003344,4]
[328113663,1716875449906,-439.64714431,0.0003344,4]
[328113664,1716875449916,-16771.57120017,0.0003344,4]
[328113665,1716875449927,-249.630155,0.00033441,7]
[328113666,1716875449938,-249.630155,0.00033441,7]
[328113667,1716875449948,-249.630155,0.00033441,7]
[328113668,1716875449958,-137.44621338,0.00033441,7]
[328113669,1716875449977,-325.21570072,0.00031767,4]
[328113670,1716875449988,-535.88568888,0.00033439,4]
[328113671,1716875449997,-112.18394162,0.00033441,7]
[328113672,1716875450009,-249.630155,0.00033441,7]
[328113673,1716875450019,-249.630155,0.00033441,7]
[328113674,1716875450029,-249.630155,0.00033441,7]
[328113675,1716875450038,-117170.03851799,0.00033441,60]
[328113676,1716875450049,-2192.36880359,0.00033441,60]
[328113677,1716875450095,-2000.93548846,0.00033439,4]
[328113678,1716875450105,-1528.51303378,0.00033441,60]
[328113679,1716875450209,-5366.08937472,0.00033441,60]
[328113680,1716875450220,-5379.15380224,0.00033441,60]
[328113681,1716875450232,-2717.57059926,0.00033441,60]
[328113682,1716875450243,-1221.72,0.00033441,60]
[328113684,1716875450256,-456.80005735,0.00033441,60]
[328113685,1716875450267,-870.34401721,0.00033441,60]
[328113686,1716875450282,-156.14403826,0.00033439,4]
[328113687,1716875450291,-107.48880817,0.00033441,60]
[328113688,1716875466768,150.0,0.0001014,2]
[328113689,1716875466790,150.0,0.0001014,2]
[328113690,1716875466810,150.0,0.0001014,2]
[328113691,1716875466831,150.0,0.0001014,2]
[328113692,1716875466852,150.0,0.0001014,2]
[328113693,1716875466872,150.0,0.0001014,2]
[328113694,1716875466892,150.0,0.0001014,2]
[328113695,1716875466913,150.0,0.0001014,2]
[328113696,1716875466938,150.0,0.0001014,2]
[328113697,1716875466958,11.17372588,0.0001014,2]
[328113698,1716875468141,150.0,0.0001014,2]
[328113699,1716875468162,59.82231735,0.0001014,2]
[328113700,1716875469501,2769.86309339,0.0001014,2]
[328113701,1716875469525,194214.55056834,0.0001014,2]
[328113702,1716875469550,345197.80059242,0.0001014,2]
[328113703,1716875469577,5780.34568361,0.0001014,2]
[328113704,1716875471973,9321.33532766,0.0001014,2]
[328113710,1716875527459,2606.040207,0.00012,2]
[328113711,1716875559960,946.23688278,0.0001014,2]
[328113712,1716875561059,264.73513153,0.0001014,2]
[328113713,1716875562786,1361.43772127,0.0001014,2]
[328113714,1716875563626,410.17369019,0.0001014,2]
[328113715,1716875564506,19746.92863178,0.0001014,2]
[328113716,1716875564566,24770.48794245,0.0001014,2]
[328113717,1716875564596,18750.0,0.0001014,2]
[328113718,1716875564621,504551.80565301,0.0001014,2]
[328113719,1716875564663,155.0,0.0001014,2]
[328113720,1716875564697,289.45716544,0.0001014,2]
[328113721,1716875566167,155.2558541,0.0001014,2]
[328113722,1716875566847,550.05855541,0.0001014,2]
[328113723,1716875566900,346.8563867,0.0001014,2]
[328113724,1716875567150,155.0,0.0001014,2]
[328113725,1716875567330,956.57769128,9.633e-05,2]
[328113726,1716875567593,299.23019146,0.0001014,2]
[328113727,1716875569741,2550.07792439,7.605e-05,2]
[328113728,1716875569894,11663.81561915,0.0001014,2]
[328113729,1716875578618,180.01787202,0.0001014,2]
[328113730,1716875578784,301.32403247,0.0001014,2]
[328113731,1716875579928,548072.29359546,0.0001014,2]
[328113732,1716875581161,155.33987675,0.0001014,2]
[328113733,1716875581631,410.17369019,0.0001014,2]
[328113734,1716875581842,19746.92863178,0.0001014,2]
[328113735,1716875582327,156.85481627,0.0001014,2]
[328113736,1716875582728,552.76902565,0.0001014,2]
[328113737,1716875582972,220.61260961,0.0001014,2]
[328113738,1716875583669,296.83955996,0.0001014,2]
[328113739,1716875585351,956.57769128,9.633e-05,2]
[328113740,1716875586915,325.96127563,0.0001014,2]
[328113741,1716875589745,2302.78846079,7.605e-05,2]
[328113742,1716875599854,403.44824654,0.0001014,2]
[328113743,1716875599926,332796.50455914,0.0001014,2]
[328113744,1716875601407,242.64264792,9.633e-05,2]
[328113745,1716875603621,353.62042811,0.0001014,2]
[328113746,1716875604971,220.61260961,0.0001014,2]
[328113747,1716875622968,150.0,0.0001014,2]
[328113748,1716875622994,5.0,0.0001014,2]
[328113749,1716875644987,150.0,0.0001014,2]
[328113750,1716875645010,5.0,0.0001014,2]
[328113751,1716875654792,150.0,0.0001014,2]
[328113752,1716875654814,11.17372588,0.0001014,2]
[328113754,1716875662971,150.0,0.0001014,2]
[328113755,1716875662998,5.0,0.0001014,2]
[328113756,1716875670872,300.0,0.0001014,2]
[328113757,1716875678983,150.0,0.0001014,2]
[328113758,1716875679011,5.0,0.0001014,2]
[328113759,1716875694978,155.0,0.0001014,2]
[328113760,1716875706815,300.0,0.0001014,2]
[328113761,1716875714976,150.0,0.0001014,2]
[328113762,1716875714997,5.0,0.0001014,2]
[328113763,1716875730982,173.08329127,0.0001014,2]
[328113764,1716875844065,191.86,0.00029182,120]
[328113765,1716876043267,1019.0,0.000284,120]
[328113766,1716876404661,200.0,0.00011445,2]
[328113770,1716876471438,150.0,0.00011445,2]
[328113771,1716876471460,150.0,0.00011445,2]
[328113772,1716876471481,150.0,0.00011445,2]
[328113773,1716876471502,150.0,0.00011445,2]
[328113774,1716876471524,150.0,0.00011445,2]
[328113775,1716876471544,150.0,0.00011445,2]
[328113776,1716876471566,150.0,0.00011445,2]
[328113777,1716876471586,150.0,0.00011445,2]
[328113778,1716876471607,150.0,0.00011445,2]
[328113779,1716876471628,11.43772127,0.00011445,2]
[328113780,1716876472221,362.44522294,0.00011445,2]
[328113781,1716876472800,155.0,0.00011445,2]
[328113782,1716876479330,150.0,0.00011445,2]
[328113783,1716876479353,139.45716544,0.00011445,2]
[328113784,1716876487591,150.0,0.00011445,2]
[328113785,1716876487613,150.0,0.00011445,2]
[328113786,1716876487636,150.0,0.00011445,2]
[328113787,1716876487659,150.0,0.00011445,2]
[328113788,1716876487681,150.0,0.00011445,2]
[328113789,1716876487704,611.43772127,0.00011445,2]
[328113790,1716876490205,150.0,0.00011445,2]
[328113791,1716876490231,150.0,0.00011445,2]
[328113792,1716876490253,62.44522294,0.00011445,2]
[328113793,1716876490783,87.55477706,0.00011445,2]
[328113794,1716876490805,67.44522294,0.00011445,2]
[328113795,1716876497263,150.0,0.00011445,2]
[328113796,1716876497287,138.99149914,0.00011445,2]
[328113797,1716876506797,210.04842255,0.00011445,2]
[328113798,1716876508179,150.0,0.00011445,2]
[328113799,1716876508201,150.0,0.00011445,2]
[328113800,1716876508225,62.44522294,0.00011445,2]
[328113801,1716876513444,1361.43772127,0.00011445,2]
[328113802,1716876519344,150.0,0.00011445,2]
[328113803,1716876519372,5.0,0.00011445,2]
[328113804,1716876528182,511.42332728,0.00011445,2]
[328113805,1716876528603,489196.28567726,0.00011445,2]
[328113806,1716876532965,150.0,0.00011445,2]
[328113807,1716876532987,150.0,0.00011445,2]
[328113808,1716876533010,150.0,0.00011445,2]
[328113809,1716876533031,150.0,0.00011445,2]
[328113810,1716876533053,150.0,0.00011445,2]
[328113811,1716876533076,150.0,0.00011445,2]
[328113812,1716876533097,150.0,0.00011445,2]
[328113813,1716876533119,150.0,0.00011445,2]
[328113814,1716876533142,150.0,0.00011445,2]
[328113815,1716876533164,150.0,0.00011445,2]
[328113816,1716876533186,150.0,0.00011445,2]
[328113817,1716876533208,150.0,0.00011445,2]
[328113818,1716876533236,150.0,0.00011445,2]
[328113819,1716876533262,150.0,0.00011445,2]
[328113820,1716876533284,150.0,0.00011445,2]
[328113821,1716876533307,150.0,0.00011445,2]
[328113822,1716876533329,150.0,0.00011445,2]
[328113823,1716876533353,150.0,0.00011445,2]
[328113824,1716876533374,150.0,0.00011445,2]
[328113825,1716876533394,150.0,0.00011445,2]
[328113826,1716876533415,180.43944239,0.00011445,2]
[328113827,1716876533436,16566.48918939,0.00011445,2]
[328113828,1716876533493,1361.43772127,0.00011445,2]
[328113829,1716876545917,176.65288147,8.584e-05,2]
[328113831,1716876546181,484.74316305,0.00011445,2]
[328113832,1716876547646,254.45322787,0.00011388,2]
[328113833,1716876549573,1361.43772127,0.00011445,2]
[328113834,1716876549939,956.57769128,0.00010873,2]
[328113837,1716876552968,19746.92863178,0.00011445,2]
[328113839,1716876567954,956.57769128,0.00010873,2]
[328113840,1716876568980,3636.03580521,0.00011445,2]
[328113841,1716876569454,1361.43772127,0.00011445,2]
[328113843,1716876585452,1361.43772127,0.00011445,2]
[328113844,1716876585943,956.57769128,0.00010873,2]
[328113845,1716876605944,320.48322163,0.00010873,2]
[328113846,1716876607451,1361.43772127,0.00011445,2]
[328113848,1716876627464,1361.43772127,0.00011445,2]
[328113851,1716876631763,-526.80538769,0.00012995,2]
[328113852,1716876631773,-282.26403901,0.00012996,2]
[328113853,1716876631783,-3288.60966713,0.00012996,2]
[328113854,1716876631793,-155.0,0.00012996,2]
[328113856,1716876631802,-751.61833958,0.00012997,2]
[328113857,1716876631811,-207.71995597,0.00012997,2]
[328113858,1716876631822,-344.9320909,0.00012997,2]
[328113859,1716876631831,-162.25666852,0.00012998,2]
[328113860,1716876631841,-7526.23404168,0.00012998,2]
[328113861,1716876631851,-10952.16001412,0.00012998,2]
[328113862,1716876631860,-406.61896149,0.00012999,2]
[328113863,1716876631870,-4434.9000448,0.00012999,2]
[328113864,1716876631879,-2365.4678549,0.00013,2]
[328113865,1716876631888,-3094.30559708,0.00013,2]
[328113866,1716876631897,-5570.7220395,0.00013,2]
[328113867,1716876631908,-166.16771595,0.00013,2]
[328113868,1716876631918,-155.0,0.00013,2]
[328113870,1716876632066,-505.42378603,0.00013001,2]
[328113872,1716876632124,-3012.27317988,0.00013001,2]
[328113875,1716876632134,-314.36267157,0.00013001,2]
[328113877,1716876632143,-5281.78063888,0.00013001,2]
[328113879,1716876632155,-1216.16566358,0.00013002,2]
[328113880,1716876632164,-237.63610267,0.00013002,2]
[328113883,1716876632174,-155.0,0.00013002,2]
[328113884,1716876632184,-1382.70872343,0.00013003,2]
[328113886,1716876632193,-536.52210812,0.00013003,2]
[328113888,1716876632203,-1180.95563535,0.00013003,2]
[328113889,1716876632213,-150.0,0.00013071,2]
[328113891,1716876632223,-4282.56969523,0.00013072,2]
[328113892,1716876632232,-7524.9148836,0.00013073,2]
[328113894,1716876632243,-43355.96648873,0.00013074,2]
[328113895,1716876632253,-155.0,0.00013971,2]
[328113897,1716876632269,-2331.50342214,0.00013972,2]
[328113898,1716876632279,-160.27,0.00013973,2]
[328113899,1716876632288,-159.0,0.00013973,2]
[328113901,1716876632298,-162.11,0.00013973,2]
[328113903,1716876632310,-1039.68474786,0.00014,2]
[328113904,1716876632320,-210.0,0.00014378,2]
[328113905,1716876632329,-746.29575427,0.00015,2]
[328113906,1716876632340,-172.23,0.00015381,2]
[328113907,1716876632350,-172.01,0.00015674,2]
[328113908,1716876632360,-293.0,0.00015816,2]
[328113909,1716876632369,-380.6,0.00017017,2]
[328113910,1716876632379,-14996.2907,0.00017071,2]
[328113911,1716876632397,-172.23,0.00017304,2]
[328113912,1716876632409,-172.01,0.00017633,2]
[328113913,1716876632418,-940.49566822,0.00018946,2]
[328113914,1716876632428,-160.62,0.00018948,3]
[328113915,1716876632438,-28438.91,0.00018958,2]
[328113916,1716876632448,-8595.59,0.00018988,2]
[328113917,1716876632457,-23890.0,0.00019019,2]
[328113918,1716876632467,-150.0,0.00019099,2]
[328113919,1716876632477,-5152.24,0.00019125,2]
[328113920,1716876632487,-172.23,0.00019226,2]
[328113921,1716876632496,-180.56,0.00019226,2]
[328113922,1716876632506,-380.6,0.00019281,2]
[328113923,1716876632516,-4263.6,0.0001946,2]
[328113924,1716876632526,-167.61,0.00019535,2]
[328113925,1716876632535,-172.01,0.00019593,2]
[328113926,1716876632545,-1280.12,0.00019679,2]
[328113927,1716876632555,-168.33,0.00019779,2]
[328113928,1716876632564,-321.24,0.00020318,3]
[328113929,1716876632574,-250.0,0.00020583,2]
[328113930,1716876632584,-172.23,0.00021149,2]
[328113931,1716876632594,-380.6,0.00021545,2]
[328113932,1716876632603,-172.01,0.00021552,2]
[328113933,1716876632613,-5152.24,0.00021865,2]
[328113934,1716876632623,-159.0,0.00022174,2]
[328113935,1716876632634,-697.0,0.000227,3]
[328113936,1716876632644,-172.23,0.00023072,2]
[328113937,1716876632654,-172.01,0.00023511,2]
[328113938,1716876632663,-380.6,0.00023809,2]
[328113939,1716876632672,-3937.34861637,0.00024603,2]
[328113940,1716876632682,-5152.24,0.00024604,2]
[328113941,1716876632692,-168.33,0.00024724,2]
[328113942,1716876632701,-380.6,0.00026073,2]
[328113943,1716876632711,-438.4,0.00027032,2]
[328113944,1716876632720,-200.0,0.00027722,2]
[328113945,1716876632730,-4749.9705679,0.00027769,2]
[328113946,1716876632740,-250.0,0.00028122,2]
[328113947,1716876632749,-163.58021622,0.000283,2]
[328113948,1716876632758,-380.6,0.00028337,2]
[328113949,1716876632768,-37515.01551523,0.000284,2]
[328113950,1716876632778,-300.42785399,0.000284,2]
[328113951,1716876632787,-20076.86051452,0.000284,2]
[328113952,1716876632797,-211.04941276,0.00029352,2]
[328113953,1716876632807,-153.22,0.00029352,2]
[328113954,1716876632817,-671277.27057984,0.00029362,2]
[328113955,1716876632826,-163.58021618,0.00029635,2]
[328113956,1716876632836,-168.33,0.00029668,2]
[328113957,1716876632847,-453.27444202,0.00029761,2]
[328113958,1716876632857,-423.08626359,0.00030095,4]
[328113959,1716876632867,-159.0,0.00030374,2]
[328113960,1716876632877,-438.4,0.00030411,2]
[328113961,1716876632887,-380.6,0.00030601,2]
[328113962,1716876632896,-1000.0,0.00030646,2]
[328113963,1716876632908,-163.58021618,0.0003097,2]
[328113964,1716876632918,-440.0,0.00031247,2]
[328113965,1716876632927,-420.80063187,0.00031766,4]
[328113966,1716876632936,-163.58021618,0.00032304,2]
[328113967,1716876632945,-216.59,0.00032762,10]
[328113968,1716876632955,-1025.98038359,0.00032772,5]
[328113969,1716876632964,-1004.58,0.000328,2]
[328113970,1716876632974,-305.7,0.000328,2]
[328113971,1716876632984,-380.6,0.00032865,2]
[328113972,1716876632994,-2000.0,0.00032986,30]
[328113973,1716876633004,-725.44927787,0.00033,2]
[328113974,1716876633013,-252.60010919,0.00033105,4]
[328113975,1716876633023,-697.36653125,0.0003311,2]
[328113976,1716876633033,-188.51005289,0.00033118,3]
[328113977,1716876633042,-532.73745398,0.00033141,4]
[328113978,1716876633051,-500.0,0.00033141,6]
[328113979,1716876633061,-200.0,0.00033159,120]
[328113980,1716876633071,-500.0,0.00033184,10]
[328113981,1716876633081,-210.69101988,0.00033239,5]
[328113982,1716876633091,-500.0,0.00033241,6]
[328113983,1716876633102,-500.0,0.00033241,6]
[328113984,1716876633112,-210.69101981,0.00033277,5]
[328113985,1716876633122,-150.0,0.00033289,2]
[328113986,1716876633131,-500.0,0.00033303,2]
[328113987,1716876633144,-500.0,0.00033303,2]
[328113988,1716876633156,-500.0,0.00033303,2]
[328113989,1716876633165,-500.0,0.00033303,2]
[328113990,1716876633175,-500.0,0.00033303,2]
[328113991,1716876633185,-507.57475261,0.00033303,2]
[328113992,1716876633195,-210.69101981,0.00033314,5]
[328113993,1716876633205,-150.0,0.00033327,2]
[328113994,1716876633215,-5598.67782575,0.00033336,2]
[328113995,1716876633224,-3843.0062,0.00033339,2]
[328113996,1716876633234,-500.0,0.00033339,2]
[328113997,1716876633243,-4244.3057,0.00033339,2]
[328113998,1716876633253,-4747.8031,0.00033339,2]
[328113999,1716876633265,-340.8876,0.00033339,2]
[328114000,1716876633277,-150.0,0.0003335,2]
[328114001,1716876633287,-150.0,0.0003336,2]
[328114002,1716876633297,-150.0,0.00033362,2]
[328114003,1716876633308,-150.0,0.0003339,2]
[328114004,1716876633318,-150.0,0.00033394,2]
[328114005,1716876633328,-2000.0,0.000334,10]
[328114006,1716876633339,-150.0,0.000334,22]
[328114007,1716876633350,-150.0,0.000334,7]
[328114008,1716876633359,-4528.47861574,0.00033409,4]
[328114009,1716876633369,-280.1653114,0.0003343,2]
[328114010,1716876633378,-356.4883418,0.0003343,2]
[328114011,1716876633388,-265.1942101,0.0003343,2]
[328114012,1716876633398,-265.1942101,0.0003343,2]
[328114013,1716876633410,-2887.9106661,0.00033434,2]
[328114014,1716876633420,-2018.6622145,0.00033434,2]
[328114015,1716876633429,-1149.413763,0.00033434,2]
[328114016,1716876633439,-356.4883418,0.00033434,2]
[328114017,1716876633449,-356.4883418,0.00033434,2]
[328114018,1716876633459,-356.4883418,0.00033434,2]
[328114019,1716876633469,-265.1942101,0.00033434,2]
[328114020,1716876633482,-500.0,0.00033438,6]
[328114021,1716876633491,-500.0,0.00033438,6]
[328114022,1716876633502,-500.0,0.00033438,6]
[328114023,1716876633511,-302.56979293,0.00033438,6]
[328114024,1716876633521,-516.84870749,0.00033438,6]
[328114025,1716876633530,-455.0725694,0.00033438,6]
[328114026,1716876633540,-500.0,0.00033438,6]
[328114027,1716876633549,-500.0,0.00033438,6]
[328114028,1716876633559,-500.0,0.00033438,6]
[328114029,1716876633569,-500.0,0.00033438,6]
[328114030,1716876633579,-500.0,0.00033438,6]
[328114031,1716876633588,-500.0,0.00033438,6]
[328114032,1716876633598,-500.0,0.00033438,6]
[328114033,1716876633608,-500.0,0.00033438,6]
[328114034,1716876633618,-500.0,0.00033438,6]
[328114035,1716876633628,-500.0,0.00033438,6]
[328114036,1716876633637,-500.0,0.00033438,6]
[328114037,1716876633647,-500.0,0.00033438,6]
[328114038,1716876633657,-320.0,0.00033439,5]
[328114039,1716876633667,-3757.1591176,0.00033439,2]
[328114040,1716876633678,-356.4883418,0.00033439,2]
[328114041,1716876633688,-265.1942101,0.00033439,2]
[328114042,1716876633699,-265.1942101,0.00033439,2]
[328114043,1716876633708,-298.94970886,0.00033439,4]
[328114044,1716876633718,-155.36112714,0.00033439,4]
[328114045,1716876633727,-10531.13290305,0.00033439,4]
[328114046,1716876633737,-155.0,0.00033439,4]
[328114047,1716876633746,-155.99220596,0.00033439,4]
[328114048,1716876633756,-834.98486009,0.00033439,2]
[328114049,1716876633766,-155.64942444,0.00033439,4]
[328114050,1716876633776,-215.07013335,0.00033439,4]
[328114051,1716876633786,-155.52009233,0.00033439,4]
[328114052,1716876633796,-206.41260794,0.00033439,4]
[328114053,1716876633806,-155.30041863,0.00033439,4]
[328114054,1716876633816,-1249.24282258,0.00033439,4]
[328114055,1716876633826,-489.24399676,0.00033439,4]
[328114056,1716876633835,-268.59558881,0.00033439,4]
[328114057,1716876633845,-410.00321735,0.00033439,4]
[328114058,1716876633855,-1064.51850023,0.00033439,4]
[328114059,1716876633866,-156.4789055,0.00033439,4]
[328114060,1716876633875,-155.51498467,0.00033439,4]
[328114061,1716876633885,-160.67667776,0.00033439,4]
[328114062,1716876633894,-155.12400407,0.00033439,4]
[328114063,1716876633904,-155.43174459,0.00033439,2]
[328114064,1716876633915,-784.20684881,0.00033439,2]
[328114065,1716876633925,-155.40151344,0.00033439,4]
[328114066,1716876633935,-156.15216755,0.00033439,4]
[328114067,1716876633945,-364.5087511,0.00033439,30]
[328114068,1716876633954,-168.01309811,0.00033439,4]
[328114069,1716876633964,-155.0,0.00033439,4]
[328114070,1716876633974,-155.17789468,0.00033439,4]
[328114071,1716876633984,-155.0,0.00033439,4]
[328114072,1716876633994,-657.03192757,0.00033439,4]
[328114073,1716876634003,-328.07575821,0.00033439,4]
[328114074,1716876634013,-155.0,0.00033439,4]
[328114075,1716876634023,-796.76197595,0.00033439,4]
[328114076,1716876634032,-10640.83534946,0.00033439,4]
[328114077,1716876634042,-267.13099494,0.00033439,4]
[328114078,1716876634052,-155.79683527,0.00033439,4]
[328114079,1716876634062,-2237.07996375,0.00033439,14]
[328114080,1716876634072,-179.44221102,0.00033439,4]
[328114081,1716876634082,-155.39093908,0.00033439,4]
[328114082,1716876634091,-325.10674615,0.00033439,4]
[328114083,1716876634101,-210.28386689,0.00033439,4]
[328114084,1716876634111,-155.50003397,0.00033439,4]
[328114085,1716876634122,-306.44526837,0.00033439,4]
[328114086,1716876634132,-1000.0,0.00033439,4]
[328114087,1716876634145,-448.53891426,0.00033439,4]
[328114088,1716876634155,-155.22860579,0.00033439,4]
[328114089,1716876634166,-245.89370717,0.00033439,4]
[328114090,1716876634175,-623.81907936,0.00033439,4]
[328114091,1716876634185,-155.57262884,0.00033439,4]
[328114092,1716876634195,-157.8588803,0.00033439,4]
[328114093,1716876634204,-155.0,0.00033439,4]
[328114094,1716876634214,-155.5880048,0.00033439,4]
[328114095,1716876634224,-155.29845671,0.00033439,2]
[328114096,1716876634234,-619.51183842,0.00033439,4]
[328114097,1716876634243,-1053.9727,0.0003344,2]
[328114098,1716876634253,-178.93752627,0.00033441,4]
[328114099,1716876634267,-109380.62321985,0.00033444,3]
[328114100,1716876634276,-4626.4075692,0.00033449,2]
[328114101,1716876634286,-356.4883418,0.00033449,2]
[328114102,1716876634296,-265.1942101,0.00033449,2]
[328114103,1716876634307,-155.46468628,0.00033451,4]
[328114104,1716876634317,-150.01,0.00033452,2]
[328114105,1716876634327,-3770.44159057,0.00033452,2]
[328114106,1716876634336,-500.0,0.00033453,2]
[328114107,1716876634346,-500.0,0.00033453,2]
[328114108,1716876634357,-500.0,0.00033453,2]
[328114109,1716876634366,-500.0,0.00033453,2]
[328114110,1716876634377,-500.0,0.00033453,2]
[328114111,1716876634387,-500.0,0.00033453,2]
[328114112,1716876634397,-500.0,0.00033453,2]
[328114113,1716876634407,-500.0,0.00033453,2]
[328114114,1716876634416,-500.0,0.00033453,2]
[328114115,1716876634426,-500.0,0.00033453,2]
[328114116,1716876634436,-500.0,0.00033453,2]
[328114117,1716876634448,-500.0,0.00033453,2]
[328114118,1716876634458,-500.0,0.00033453,2]
[328114119,1716876634468,-500.0,0.00033453,2]
[328114120,1716876634477,-500.0,0.00033453,2]
[328114121,1716876634487,-500.0,0.00033453,2]
[328114122,1716876634497,-500.0,0.00033453,2]
[328114123,1716876634507,-500.0,0.00033453,2]
[328114124,1716876634516,-500.0,0.00033453,2]